Cogmind - Beta 11.1 @@@ ROGUE MODE // 2022.09.16 @ 18:38:23 Player: Richard Blunt Result: Destroyed by S-27 Virus with Autogun Performance ------------- Evolutions (6) 3000 Regions Visited (19) 3800 Robots Destroyed (226) 1130 Value Destroyed (10629) 10629 Prototype IDs (34) 680 Alien Tech Used (0) 0 Bonus (6837) 6837 TOTAL SCORE: 26076 Bonus ------- High Alert Combat Kills 1872 Follower Combat Kills 1804 Entered Garrisons 1000 Used RIF Installer 2500 Aligned with FarCom 300 Friendly Fire -639 Cogmind --------- Core Integrity 0/1150 Matter 300/300 Energy 100/100 System Corruption 8% Temperature Cool (0) Movement Core (50) Location -4/Factory Parts ------- > --- POWER (2) -------- (None) > --- PROPULSION (6) --- (None) > --- UTILITY (8) ------ (None) > --- WEAPON (3) ------- (None) > --- INVENTORY (5) ---- High-capacity Storage Unit Huge Storage Unit Relay Coupler [Heavy] (12) Improved Remote Datajack Field Lobotomy Kit (1) Peak State ------------ > --- POWER ------------ Reinforced Fission Core Light Antimatter Reactor > --- PROPULSION ------- Improved Treads Improved Treads Improved Treads Improved Treads Improved Treads Improved Medium Treads > --- UTILITY ---------- Advanced Heat Sink Advanced Cooling System Huge Storage Unit Advanced Terrain Scan Processor Layered Medium Armor Plating Improved Focal Shield Relay Coupler [Cutter] Improved Dynamic Insulation System > --- WEAPON ----------- Heavy Phase Cannon Railgun Tesla Bomb Launcher > --- INVENTORY -------- Neutrino Core Improved Treads Improved Treads Advanced Heat Sink High-capacity Storage Unit Compact Matter Pod Improved Terrain Scanner Relay Coupler [NC] Relay Coupler [Sentry] Relay Coupler [Heavy] Long-range Tractor Beam Drone Bay Advanced Plasma Cannon Hypervelocity Coil Gun Railgun Heavy Flak Cannon Linear Accelerator Mini Grenade Launcher Remote Datajack Field Lobotomy Kit Plasma Cutter [Rating: 93] Favorites ----------- Power Reinforced Fission Core Engine Ion Engine Power Core Reinforced Fission Core Reactor Antimatter Reactor Propulsion Light Treads Treads Light Treads Wheel Compact Wheel Hover Unit Antigrav System Utility High-capacity Storage Unit Device Advanced Heat Sink Storage High-capacity Storage Unit Processor Advanced Terrain Scan Processor Hackware Relay Coupler [NC] Protection Layered Medium Armor Plating Weapon Heavy Assault Rifle Energy Gun Gatling Laser Energy Cannon Compact Ion Cannon Ballistic Gun Heavy Assault Rifle Ballistic Cannon Gauss Cannon Launcher Mini Grenade Launcher Special Weapon Remote Datajack Slashing Weapon Chainsword Build | -11 -10 -10 -10 -9 -8 -8 -8 -8 -7 -7 -6 -6 -6 -6 -5 -5 -5 -5 -4 ------- Run | Scr Mat Min Exi Min Mat Gar Mat Gar Fac Gar Fac Was Fac Gar Fac Was Fac Gar Fac Slots Evolved 12 | . . . . . 4 . . . 2 . 2 . . . 2 . . . 2 Power 1 | . . . . . . . . . . . . . . . 1 . . . . Propulsion 4 | . . . . . 2 . . . . . . . . . 1 . . . 1 Utility 6 | . . . . . 2 . . . 2 . 1 . . . . . . . 1 Weapon 1 | . . . . . . . . . . . 1 . . . . . . . . Parts Attached 367 | 7 13 4 1 1 27 16 20 3 33 28 2 15 32 26 46 1 1 42 49 Power 33 | 1 1 1 . . 4 1 1 . 1 1 . 4 1 2 5 . . 3 7 Engine 7 | 1 1 1 . . 1 . . . 1 . . . 1 1 . . . . . Core 19 | . . . . . 3 1 1 . . 1 . 1 . . 4 . . 2 6 Reactor 7 | . . . . . . . . . . . . 3 . 1 1 . . 1 1 Propulsion 70 | 2 2 . . . 7 3 4 2 8 1 . 4 1 6 6 . . 14 10 Treads 63 | 1 1 . . . 6 3 4 2 8 1 . 4 1 6 5 . . 12 9 Leg . | . . . . . . . . . . . . . . . . . . . . Wheel 6 | 1 1 . . . 1 . . . . . . . . . 1 . . 2 . Hover 1 | . . . . . . . . . . . . . . . . . . . 1 Flight . | . . . . . . . . . . . . . . . . . . . . Utility 105 | 2 1 2 1 . 5 2 4 . 10 10 1 2 15 5 17 1 1 12 14 Device 39 | 1 . . . . 3 . 1 . 4 2 1 . 3 2 9 . 1 5 7 Storage 8 | 1 1 . 1 . . . . . . . . . 2 . 1 . . . 2 Processor 4 | . . 1 . . 1 . . . 1 . . . . . . . . . 1 Hackware 19 | . . . . . . . . . 2 3 . 1 2 1 4 . . 4 2 Protection 35 | . . 1 . . 1 2 3 . 3 5 . 1 8 2 3 1 . 3 2 Artifact . | . . . . . . . . . . . . . . . . . . . . Weapon 159 | 2 9 1 . 1 11 10 11 1 14 16 1 5 15 13 18 . . 13 18 Energy Gun 4 | . . . . . . . . . . . . . . 3 1 . . . . Energy Cannon 13 | . . . . . . 1 . . . . . . 1 1 4 . . 2 4 Ballistic Gun 49 | 2 6 1 . . 5 4 6 1 5 6 . 2 4 . . . . 3 4 Ballistic Cannon 25 | . . . . . . 1 . . 3 3 . . 5 3 5 . . 2 3 Launcher 17 | . . . . . 1 3 4 . 1 1 . . . 3 1 . . 1 2 Special Weapon 37 | . 3 . . 1 5 1 . . 2 5 . 3 2 3 4 . . 3 5 Impact Weapon . | . . . . . . . . . . . . . . . . . . . . Slashing Weapon 14 | . . . . . . . 1 . 3 1 1 . 3 . 3 . . 2 . Piercing Weapon . | . . . . . . . . . . . . . . . . . . . . Special Melee Weapon . | . . . . . . . . . . . . . . . . . . . . Unidentified Prototypes 4 | . . . . . 1 . 1 . . . . . . . . . . . 2 Parts Lost 68 | . . 1 . . 3 4 6 . . 1 . 2 10 4 5 . . 5 27 Power 8 | . . 1 . . 2 . 1 . . . . 1 . . 1 . . . 2 Propulsion 22 | . . . . . 1 3 1 . . . . 1 1 3 . . . 4 8 Utility 23 | . . . . . . 1 2 . . 1 . . 6 . 2 . . 1 10 Weapon 15 | . . . . . . . 2 . . . . . 3 1 2 . . . 7 Highest Loss Streak 11 | . . 1 . . 3 4 2 . . 1 . 2 5 2 2 . . 1 11 To Critical Strikes . | . . . . . . . . . . . . . . . . . . . . Average Slot Usage (%) 89 | . 99 99 100 100 96 99 99 90 91 91 89 80 79 81 86 94 93 96 84 Engine 3 | . 14 13 14 14 3 . . . 4 2 . . 2 5 3 . . . . Core 3 | . . . . . 2 9 8 9 2 4 6 . . . 1 11 11 10 6 Reactor 1 | . . . . . . . . . . . . 3 3 . 4 . . . 1 Treads 22 | . 15 14 14 14 27 35 35 36 29 30 26 15 12 20 18 23 23 27 23 Wheel 2 | . 12 14 14 14 8 . . . . . . . . . 1 . . . . Device 8 | . 14 . . . 7 9 7 . 4 . 6 6 5 8 11 17 16 11 17 Storage 7 | . 14 14 14 14 9 9 9 9 7 7 6 6 6 6 5 5 5 5 5 Processor 8 | . . 5 14 14 15 9 9 9 15 15 13 13 7 6 5 5 5 5 4 Hackware 4 | . . . . . . . . . . 2 6 12 9 6 5 5 5 6 6 Protection 6 | . . 8 . . 3 9 10 9 8 11 6 . 8 9 6 5 5 8 2 Energy Cannon 1 | . . . . . . . . . . . . . 2 2 5 5 5 2 2 Ballistic Gun 7 | . 20 28 28 26 14 9 14 18 6 4 6 7 6 . . . . 3 6 Ballistic Cannon 3 | . . . . . . 8 2 . 3 6 6 . 6 5 5 5 5 2 1 Special Weapon 2 | . 7 . . 1 3 . . . . 2 . 8 1 . . . . 2 1 Slashing Weapon 1 | . . . . . . . . . 3 . 3 2 . . . 5 5 1 . Naked Turns 23 | . . . . . . . . . . . . . . . . . . . 23 Heaviest Build 151 | 14 32 34 51 51 60 62 73 73 87 89 82 76 94 99 113 106 106 124 151 Greatest Support 148 | 16 40 16 16 16 82 82 83 83 98 98 90 140 140 140 148 143 143 143 145 Greatest Overweight (x) 6 | . 1 2 3 3 3 . . . 1 1 . 1 . 1 . . . 1 6 Average Overweight (x) . | . . 1 2 3 . . . . . . . . . . . . . . . Largest Inventory Capacity 25 | 8 15 15 20 20 20 20 20 20 20 20 20 20 20 20 20 20 20 20 25 Average Capacity 19 | 7 12 15 19 20 20 20 20 20 20 20 20 20 20 20 20 20 20 20 21 Most Carried 21 | 5 15 15 17 18 20 20 20 20 20 20 19 20 20 20 20 20 20 20 21 Average Carried 18 | 3 11 14 16 17 19 19 19 19 19 19 18 19 16 18 19 19 20 19 16 Final Capacity 20 | 8 15 15 20 20 20 20 20 20 20 20 20 20 20 20 20 20 20 20 5 Final Carried 20 | 5 15 14 17 18 19 20 20 20 20 20 18 19 19 19 20 20 20 19 5 Class Distribution -------------------- 32% | Scavenger-Mutant 26% | Mutant 7% | Bothacker-Skirmisher 7% | Scavenger-Skirmisher 5% | Scavenger-Tank 4% | Bothacker-Assassin 3% | Skirmisher 3% | Assassin Dominant Class ---------------- Mutant | -10/Materials Mutant | -10/Mines Mutant | -10/Exiles Mutant | -9/Mines Scavenger-Mutant | -8/Materials Scavenger-Mutant | -8/Garrison Scavenger-Mutant | -8/Materials Mutant | -8/Garrison Mutant | -7/Factory Commander-Mutant | -7/Garrison Bothacker-Assassin | -6/Factory Bothacker-Skirmisher | -6/Waste Scavenger-Skirmisher | -6/Factory Mutant | -6/Garrison Scavenger-Mutant | -5/Factory Scavenger-Mutant | -5/Waste Scavenger-Mutant | -5/Factory Scavenger-Mutant | -5/Garrison Scavenger-Mutant | -4/Factory Resources | -11 -10 -10 -10 -9 -8 -8 -8 -8 -7 -7 -6 -6 -6 -6 -5 -5 -5 -5 -4 ----------- Run | Scr Mat Min Exi Min Mat Gar Mat Gar Fac Gar Fac Was Fac Gar Fac Was Fac Gar Fac Matter Collected 10026 | 286 315 103 40 . 537 262 769 169 839 534 . 605 1349 735 1109 96 34 1197 1047 Remotely 219 | . . . . . . . . . . . . . . . . . . . 219 Salvage Created 10692 | 75 637 147 . . 726 192 1019 469 695 208 . 1469 1277 534 997 . . 1097 1150 Parts 445 | 6 37 6 . . 33 13 60 20 38 11 . 22 55 24 30 . . 46 44 Haulers Intercepted 9 | . 2 . . . 2 . 3 . 1 . . . . . . . . . 1 Recyclers Shooed 13 | . 1 . . . . . . . 2 . . . 6 . 3 . . . 1 Parts Field Recycled . | . . . . . . . . . . . . . . . . . . . . Retrieved Matter . | . . . . . . . . . . . . . . . . . . . . Parts Self-Destructed . | . . . . . . . . . . . . . . . . . . . . Prevented . | . . . . . . . . . . . . . . . . . . . . Kills | -11 -10 -10 -10 -9 -8 -8 -8 -8 -7 -7 -6 -6 -6 -6 -5 -5 -5 -5 -4 ------- Run | Scr Mat Min Exi Min Mat Gar Mat Gar Fac Gar Fac Was Fac Gar Fac Was Fac Gar Fac Combat Hostiles Destroyed 177 | . 14 5 . . 11 8 22 9 10 3 . 5 20 18 11 . 1 21 19 Guns 85 | . 14 5 . . 10 2 11 9 7 2 . 5 5 4 2 . . 5 4 Cannons 53 | . . . . . . 1 . . . . . . 15 6 9 . 1 10 11 AOE 34 | . . . . . 1 5 11 . 3 1 . . . 8 . . . 4 1 Classes Destroyed 17 | 2 4 . . . 3 . 1 2 1 . . 1 . . . . 1 1 1 Worker 7 | . . . . . 2 . 4 . 1 . . . . . . . . . . Builder 8 | . . . . . 1 . 1 . 1 . . . 4 . . . . . 1 Tunneler 1 | 1 . . . . . . . . . . . . . . . . . . . Hauler 9 | . 2 . . . 2 . 3 . 1 . . . . . . . . . 1 Recycler 16 | 1 1 . . . 1 . 2 . 4 . . . 3 . 4 . . . . Watcher 5 | . 2 . . . 1 . 1 . . . . . 1 . . . . . . Swarmer 37 | . 6 3 . . 2 2 7 . 4 1 . . 1 8 . . . 3 . Grunt 68 | . 8 2 . . 6 2 10 6 1 . . . 7 7 3 . . 5 11 Brawler 5 | . . . . . . . . 1 . . . . 2 1 . . . . 1 Duelist 4 | . . . . . . . . . . . . . . . . . . 2 2 Protector 1 | . . . . . . . . . . . . . . . . . . . 1 Sentry 31 | . . . . . 3 4 3 1 2 1 . . 2 2 2 . . 11 . Demolisher 1 | . . . . . . . . . . . . . . . . . 1 . . Specialist 4 | . . . . . . . 2 . . 2 . . . . . . . . . Hunter 7 | . . . . . . . . 1 . 1 . . 4 . . . . 1 . Programmer 17 | . . . . . . . . . 3 . . . 4 . 6 . . . 4 Compactor 5 | . . . . . . . . . . . . 5 . . . . . . . Best Kill Streak 10 | 2 6 3 . . 4 5 10 3 4 2 . 1 4 4 2 . 1 5 5 Combat Bots Only 7 | . 6 3 . . 3 5 7 3 4 2 . 1 4 4 2 . 1 5 5 Max Kills in Single Turn 3 | 1 2 1 . . 2 2 3 1 3 2 . 1 1 3 1 . 1 3 2 Gunslinging 1 | . 1 . . . . . . . . . . . . . . . . . . Exploded 3 | . . . . . 1 2 2 . 3 1 . . . 3 . . . 3 1 Melee . | . . . . . . . . . . . . . . . . . . . . Uniques/NPCs Destroyed . | . . . . . . . . . . . . . . . . . . . . Combat | -11 -10 -10 -10 -9 -8 -8 -8 -8 -7 -7 -6 -6 -6 -6 -5 -5 -5 -5 -4 -------- Run | Scr Mat Min Exi Min Mat Gar Mat Gar Fac Gar Fac Was Fac Gar Fac Was Fac Gar Fac Damage Taken 20172 | . 447 298 . . 887 639 1562 621 946 423 . 93 3533 1591 2297 . 73 2835 3927 Core 3309 | . 88 35 . . 174 60 211 33 61 36 . 35 208 377 435 . . 399 1157 Absorbed by Shields . | . . . . . . . . . . . . . . . . . . . . Regen/Repaired (Parts) 1053 | . . . . . . . . . 249 . . . . . 804 . . . . Core Remaining (%) 48 | 100 . . . 50 . . . 13 . 86 . . . 27 . . . 16 . Volleys Fired 792 | 4 66 13 . 1 57 30 72 31 52 33 . 59 109 49 72 . 3 67 74 Largest 3 | 2 2 2 . 1 2 2 2 2 2 2 . 2 3 3 3 . 2 3 3 Hottest 241 | 40 100 46 . 100 100 67 74 48 69 78 . 56 191 223 241 . 151 199 209 Shots Fired 1539 | 8 103 26 . 1 103 41 134 60 92 43 . 106 270 102 161 . 5 132 152 Gun 833 | 8 79 26 . . 95 12 114 60 58 9 . 94 132 34 21 . . 45 46 Cannon 533 | . . . . . . 11 11 . 20 10 . . 133 57 124 . 5 62 100 Launcher 36 | . . . . . 1 8 9 . 1 2 . . . 8 . . . 4 3 Special 137 | . 24 . . 1 7 10 . . 13 22 . 12 5 3 16 . . 21 3 Kinetic 1104 | 8 79 26 . . 95 23 125 60 78 19 . 94 236 33 54 . 2 82 90 Thermal 301 | . 24 . . 1 7 10 . . . . . 4 29 58 91 . 3 25 49 Explosive 36 | . . . . . 1 8 9 . 1 2 . . . 8 . . . 4 3 Electromagnetic 8 | . . . . . . . . . . . . . . . . . . . 8 Robot Hit Streak 29 | 2 9 11 . . 13 10 14 11 12 19 . 21 15 11 8 . 2 29 12 Robot Miss Streak 5 | 1 4 1 . . 4 1 2 2 5 2 . 2 5 4 4 . 3 5 5 Penetration Max 1 | . . . . . . . . . . . . . 1 . . . . 1 1 Secondary Targets 8 | . 3 1 . . 2 . . 2 . . . . . . . . . . . Max Gunslinging Chain 1 | . 1 1 . . 1 . . 1 . . . . . . . . . . . Shots Hit Robots 1009 | 4 49 20 . . 66 28 97 44 64 33 . 91 167 60 103 . 1 91 91 Core Hits 470 | 3 30 7 . . 29 18 54 20 28 9 . 13 59 41 35 . 1 51 72 Critical Kills 2 | . . . . . . . . . . . . . . . . . . 2 . Critical Parts Destroyed 11 | . 2 . . . . . . . . . . 2 4 . . . . 1 2 Critical Strikes 34 | . 2 . . . . . . . 3 1 . 3 13 2 2 . . 5 3 Meltdown 2 | . . . . . . . . . . . . . . . . . . 2 . Destroy 13 | . 2 . . . . . . . . . . 3 4 . . . . 2 2 Blast 19 | . . . . . . . . . 3 1 . . 9 2 2 . . 1 1 Melee Attacks 33 | . . . . . . . 1 . 9 2 1 . 6 . 6 . 1 7 . Impact . | . . . . . . . . . . . . . . . . . . . . Slashing 33 | . . . . . . . 1 . 9 2 1 . 6 . 6 . 1 7 . Piercing . | . . . . . . . . . . . . . . . . . . . . Sneak Attacks 2 | . . . . . . . . . 2 . . . . . . . . . . Combat Hostiles . | . . . . . . . . . . . . . . . . . . . . Follow-up Attacks . | . . . . . . . . . . . . . . . . . . . . Damage Inflicted 25645 | 42 599 330 . . 1177 978 2635 690 1461 516 . 1734 4347 2111 2916 . 25 2518 3566 Guns 11366 | 42 599 330 . . 1065 135 1406 690 886 138 . 1723 1928 574 573 . . 567 710 Cannons 9937 | . . . . . . 222 248 . 282 204 . . 2150 721 2343 . 7 1458 2302 Explosions 3727 | . . . . . 90 513 976 . 141 174 . . . 816 . . 18 493 506 Melee 152 | . . . . . . . . . 152 . . . . . . . . . . Ramming 323 | . . . . . 1 . 5 . . . . . 269 . . . . . 48 Kinetic 16321 | 42 599 330 . . 1065 357 1654 690 1168 342 . 1723 3646 386 921 . 7 1377 2014 Thermal 4822 | . . . . . 21 108 . . . . . 11 432 909 1995 . . 648 698 Explosive 3521 | . . . . . 90 513 976 . 141 174 . . . 816 . . . 493 318 Electromagnetic 506 | . . . . . . . . . . . . . . . . . 18 . 488 Impact . | . . . . . . . . . . . . . . . . . . . . Slashing 152 | . . . . . . . . . 152 . . . . . . . . . . Piercing . | . . . . . . . . . . . . . . . . . . . . Highest Corruption 12 | . . . . . . . . . 3 3 . . 12 12 5 5 5 5 8 Average Corruption 6 | . . . . . . . . . 2 3 . . 9 12 3 5 5 5 3 Corruption Purged . | . . . . . . . . . . . . . . . . . . . . Corruption Blocked . | . . . . . . . . . . . . . . . . . . . . Effects 292 | . . . . . . . . . 17 20 . . 65 72 37 9 10 56 6 Message Errors 69 | . . . . . . . . . 4 7 . . 18 18 7 1 2 10 2 Matter Fused 73 | . . . . . . . . . 4 7 . . 18 13 11 3 2 13 2 Heat Flow Errors 37 | . . . . . . . . . 3 1 . . 7 10 5 2 1 8 . Energy Discharges 43 | . . . . . . . . . 1 2 . . 10 12 6 2 2 8 . Parts Rejected 6 | . . . . . . . . . 1 1 . . 2 1 . . . 1 . Data Loss (minor) 29 | . . . . . . . . . . 1 . . 1 9 6 1 1 9 1 Data Loss (major) 13 | . . . . . . . . . 2 . . . 1 3 . . 1 5 1 Misfires 14 | . . . . . . . . . 2 1 . . 4 6 . . . 1 . Alerts 5 | . . . . . . . . . . . . . 2 . 2 . 1 . . Misdirections 1 | . . . . . . . . . . . . . 1 . . . . . . Weapon Failures 2 | . . . . . . . . . . . . . 1 . . . . 1 . Overload Shots . | . . . . . . . . . . . . . . . . . . . . Overflow Damage 444 | . . . . . . 74 . . 40 4 . . 51 48 66 . . 79 82 Projectiles 235 | . . . . . . 32 . . . 4 . . 48 17 66 . . 6 62 Explosions 166 | . . . . . . 42 . . . . . . . 31 . . . 73 20 Melee 43 | . . . . . . . . . 40 . . . 3 . . . . . . Knockbacks 93 | . . . . . . 1 . . 2 4 . . 25 4 17 . . 22 18 Impact 1 | . . . . . . . . . . . . . 1 . . . . . . Kinetic 84 | . . . . . . 1 . . 2 4 . . 23 4 13 . . 19 18 Secondary 8 | . . . . . . . . . . . . . 1 . 4 . . 3 . Self-Inflicted Damage 405 | . . . . . . 66 . . . 55 . . . 73 . . . 67 144 Shots 11 | . . . . . . 3 . . . 1 . . . 2 . . . 2 3 Rammed 35 | . . . . . 1 . . . . . . . 26 . . . . . 8 Targets Rammed 37 | . . . . . 1 . 1 . . . . . 27 . . . . . 8 Kicked . | . . . . . . . . . . . . . . . . . . . . Crushed 2 | . . . . . . . 1 . . . . . 1 . . . . . . Highest Temperature 885 | . 60 52 . 20 92 120 199 181 247 265 . . 422 885 795 135 179 601 96 Average Temperature 128 | . 17 27 . 12 56 47 62 86 97 59 . . 148 218 175 76 38 188 34 Received Heat Transfer 4456 | . 156 135 . . 477 279 477 243 210 108 . . 456 486 237 . . 627 565 Effects 97 | . . . . . . . . . . . . . 9 34 31 . . 23 . Shutdowns 21 | . . . . . . . . . . . . . 2 3 8 . . 8 . Energy Bleed 15 | . . . . . . . . . . . . . 5 4 4 . . 2 . Interference 11 | . . . . . . . . . . . . . . 3 4 . . 4 . Matter Decay 10 | . . . . . . . . . . . . . . 6 2 . . 2 . Short Circuit 12 | . . . . . . . . . . . . . 2 7 2 . . 1 . Damage (minor) 6 | . . . . . . . . . . . . . . 3 2 . . 1 . Damage (major) 17 | . . . . . . . . . . . . . . 6 7 . . 4 . Damage (core) 5 | . . . . . . . . . . . . . . 2 2 . . 1 . Siege Activations . | . . . . . . . . . . . . . . . . . . . . Robots Corrupted 3 | . . . . . . . . . . . . . . . . . . . 3 Combat Hostiles 3 | . . . . . . . . . . . . . . . . . . . 3 Parts Fried 5 | . . . . . . . . . . . . . 2 . . . . . 3 Impact Corruptions 3 | . . . . . . . . . . . . . 2 . 1 . . . . Robots Melted 2 | . . . . . . . . . . . . . . . . . . 2 . Combat Hostiles 2 | . . . . . . . . . . . . . . . . . . 2 . Parts Melted 10 | . . . . . . . . . . . . . . 4 4 . . 1 1 Heat Transferred 7205 | . . . . . 74 370 . . . . . 37 555 1719 2842 . . 859 749 Parts Sabotaged . | . . . . . . . . . . . . . . . . . . . . Parts Stolen . | . . . . . . . . . . . . . . . . . . . . Parts Stripped . | . . . . . . . . . . . . . . . . . . . . Power Chain Reactions 1 | . . . . . . . . . . . . . . . . . . . 1 Missiles Intercepted . | . . . . . . . . . . . . . . . . . . . . Alert | -11 -10 -10 -10 -9 -8 -8 -8 -8 -7 -7 -6 -6 -6 -6 -5 -5 -5 -5 -4 ------- Run | Scr Mat Min Exi Min Mat Gar Mat Gar Fac Gar Fac Was Fac Gar Fac Was Fac Gar Fac Peak Influence 1604 | 10 423 122 . 3 293 484 713 665 349 528 278 97 385 839 522 87 705 1604 907 Initial 842 | . 6 12 . . . 170 235 370 348 157 277 97 . 225 440 87 60 353 842 Average 392 | 3 148 94 . . 195 373 442 493 231 329 277 16 208 549 232 87 346 1220 772 Maximum Alert Level 5 | . 2 . . . 1 2 3 2 1 2 1 . 1 3 2 . 3 5 3 Low Security (%) 32 | 100 58 100 . 100 43 10 . . 44 6 . 100 37 . 45 100 13 . . Level 1 30 | . 34 . . . 56 33 35 15 55 57 100 . 62 13 37 . 56 1 . Level 2 18 | . 6 . . . . 55 63 84 . 35 . . . 61 17 . 8 6 13 Level 3 8 | . . . . . . . . . . . . . . 25 . . 21 10 86 Level 4 8 | . . . . . . . . . . . . . . . . . . 77 . Level 5 . | . . . . . . . . . . . . . . . . . . 3 . High Security . | . . . . . . . . . . . . . . . . . . . . Max Security . | . . . . . . . . . . . . . . . . . . . . Squads Dispatched 48 | . 2 . . . 3 . 6 . 3 . . . 8 . 11 . 2 . 13 Investigation 8 | . 1 . . . 1 . 1 . 1 . . . 3 . 1 . . . . Extermination 12 | . . . . . . . . . 1 . . . 4 . 3 . 1 . 3 Reinforcement 13 | . 1 . . . 1 . 2 . 1 . . . 1 . . . 1 . 6 Assault 4 | . . . . . . . . . . . . . . . . . . . 4 Garrison 11 | . . . . . 1 . 3 . . . . . . . 7 . . . . Intercept . | . . . . . . . . . . . . . . . . . . . . Searches Triggered . | . . . . . . . . . . . . . . . . . . . . Construction Impeded 5 | . . . . . 1 . . . 1 . . . . . . . . . 3 Haulers Reinforced 1 | . . . . . . . . . . . . . . . . . . . 1 Active Scanning Responses . | . . . . . . . . . . . . . . . . . . . . Cargo Convoy Interrupts . | . . . . . . . . . . . . . . . . . . . . Stealth | -11 -10 -10 -10 -9 -8 -8 -8 -8 -7 -7 -6 -6 -6 -6 -5 -5 -5 -5 -4 --------- Run | Scr Mat Min Exi Min Mat Gar Mat Gar Fac Gar Fac Was Fac Gar Fac Was Fac Gar Fac Distress Signals 7 | . . . . . 2 . 1 . 3 . . . . . . . . 1 . Communications Jammed . | . . . . . . . . . . . . . . . . . . . . Distress Signals . | . . . . . . . . . . . . . . . . . . . . Times Spotted 315 | . 18 5 . . 23 11 26 9 16 14 . 5 33 26 22 . 11 47 49 Peak Tracking Total 14 | . 6 3 . . 5 7 6 3 5 4 . 2 5 5 4 . 5 5 14 Tactical Retreats 14 | . . . . . 1 2 . 1 . . . . 2 4 . . . 2 2 Traps | -11 -10 -10 -10 -9 -8 -8 -8 -8 -7 -7 -6 -6 -6 -6 -5 -5 -5 -5 -4 ------- Run | Scr Mat Min Exi Min Mat Gar Mat Gar Fac Gar Fac Was Fac Gar Fac Was Fac Gar Fac Traps Triggered 10 | . . . . . 1 . 1 . 1 . 1 . 2 . 1 . . 3 . Indirectly . | . . . . . . . . . . . . . . . . . . . . Trap Hack Attempts . | . . . . . . . . . . . . . . . . . . . . Triggered . | . . . . . . . . . . . . . . . . . . . . Disarmed . | . . . . . . . . . . . . . . . . . . . . Reprogrammed . | . . . . . . . . . . . . . . . . . . . . Reused . | . . . . . . . . . . . . . . . . . . . . Traps Extracted . | . . . . . . . . . . . . . . . . . . . . Installed . | . . . . . . . . . . . . . . . . . . . . Triggered . | . . . . . . . . . . . . . . . . . . . . Machines | -11 -10 -10 -10 -9 -8 -8 -8 -8 -7 -7 -6 -6 -6 -6 -5 -5 -5 -5 -4 ---------- Run | Scr Mat Min Exi Min Mat Gar Mat Gar Fac Gar Fac Was Fac Gar Fac Was Fac Gar Fac Machines Disabled 41 | . 1 . . . 2 2 1 1 3 3 . . 3 2 3 . 11 6 3 Max in Single Turn 4 | . 1 . . . 1 1 1 1 . 1 . . 1 1 1 . 4 1 2 Garrison Access 2 | . . . . . . . . . 1 . . . . . 1 . . . . Garrison Relay 9 | . . . . . . 1 . 1 . 2 . . . 2 . . . 3 . Machines Sabotaged . | . . . . . . . . . . . . . . . . . . . . Garrisons Compromised . | . . . . . . . . . . . . . . . . . . . . Overloaded Fab Kills . | . . . . . . . . . . . . . . . . . . . . Hacking | -11 -10 -10 -10 -9 -8 -8 -8 -8 -7 -7 -6 -6 -6 -6 -5 -5 -5 -5 -4 --------- Run | Scr Mat Min Exi Min Mat Gar Mat Gar Fac Gar Fac Was Fac Gar Fac Was Fac Gar Fac Machines Accessed 41 | . 5 . 1 . 11 . 4 . 5 . . . 7 . 6 . 1 . 1 Terminals 23 | . 4 . . . 7 . 2 . 1 . . . 5 . 3 . . . 1 Fabricators . | . . . . . . . . . . . . . . . . . . . . Repair Stations 3 | . . . . . . . . . 2 . . . . . 1 . . . . Recycling Units 5 | . 1 . . . 1 . 1 . . . . . 1 . 1 . . . . Scanalyzers 2 | . . . . . 2 . . . . . . . . . . . . . . Garrison Access 7 | . . . . . 1 . 1 . 2 . . . 1 . 1 . 1 . . Total Hacks 110 | . 18 . 1 . 31 . 11 . 9 . . . 23 . 15 . 1 . 1 Successful 67 | . 12 . 1 . 21 . 4 . 7 . . . 11 . 9 . 1 . 1 Failed 43 | . 6 . . . 10 . 7 . 2 . . . 12 . 6 . . . . Catastrophic 1 | . . . . . . . . . . . . . 1 . . . . . . Database Lockouts . | . . . . . . . . . . . . . . . . . . . . Manual 53 | . 15 . 1 . 15 . 4 . 1 . . . 11 . 6 . . . . Terminals 78 | . 16 . . . 24 . 8 . 1 . . . 18 . 10 . . . 1 Fabricators . | . . . . . . . . . . . . . . . . . . . . Repair Stations 7 | . . . . . . . . . 6 . . . . . 1 . . . . Recycling Units 11 | . 2 . . . 1 . 2 . . . . . 3 . 3 . . . . Scanalyzers 5 | . . . . . 5 . . . . . . . . . . . . . . Garrison Access 8 | . . . . . 1 . 1 . 2 . . . 2 . 1 . 1 . . Terminal Hacks 32 | . 8 . 1 . 11 . 1 . . . . . 6 . 4 . . . 1 Record 4 | . . . . . 2 . . . . . . . 1 . 1 . . . . Robot Analysis 4 | . 3 . . . 1 . . . . . . . . . . . . . . Prototype ID Bank 3 | . . . . . 2 . . . . . . . 1 . . . . . . Open DSF 1 | . . . . . . . . . . . . . . . . . . . 1 Unreport Threat 2 | . 2 . . . . . . . . . . . . . . . . . . Locate Traps 11 | . 2 . . . 4 . 1 . . . . . 2 . 2 . . . . Recall Investigation 1 | . . . . . . . . . . . . . 1 . . . . . . Zone Layout 5 | . 1 . . . 2 . . . . . . . 1 . 1 . . . . EX-Prototype ID Bank 1 | . . . 1 . . . . . . . . . . . . . . . . Fabricator Hacks . | . . . . . . . . . . . . . . . . . . . . Repair Station Hacks 5 | . . . . . . . . . 5 . . . . . . . . . . Scan Component 3 | . . . . . . . . . 3 . . . . . . . . . . Repair 2 | . . . . . . . . . 2 . . . . . . . . . . Recycling Unit Hacks 6 | . 2 . . . 1 . . . . . . . 1 . 2 . . . . Report Inventory 3 | . 1 . . . 1 . . . . . . . . . 1 . . . . Retrieve Matter 1 | . . . . . . . . . . . . . 1 . . . . . . Retrieve Components 2 | . 1 . . . . . . . . . . . . . 1 . . . . Scanalyzer 5 | . . . . . 5 . . . . . . . . . . . . . . Insert Component 3 | . . . . . 3 . . . . . . . . . . . . . . Analyze 2 | . . . . . 2 . . . . . . . . . . . . . . Garrison Access Hacks 8 | . . . . . 1 . 1 . 2 . . . 2 . 1 . 1 . . Unlock Access 5 | . . . . . 1 . 1 . 1 . . . 1 . . . 1 . . Seal Access 2 | . . . . . . . . . 1 . . . . . 1 . . . . Coupler Status 1 | . . . . . . . . . . . . . 1 . . . . . . Unauthorized Hacks 11 | . 2 . . . 3 . 2 . . . . . 2 . 2 . . . . Terminals 11 | . 2 . . . 3 . 2 . . . . . 2 . 2 . . . . Botnet 11 | . 2 . . . 3 . 2 . . . . . 2 . 2 . . . . Fabricators . | . . . . . . . . . . . . . . . . . . . . Repair Stations . | . . . . . . . . . . . . . . . . . . . . Recycling Units . | . . . . . . . . . . . . . . . . . . . . Scanalyzers . | . . . . . . . . . . . . . . . . . . . . Garrison Access . | . . . . . . . . . . . . . . . . . . . . Data Cores Recovered 1 | . . . . . 1 . . . . . . . . . . . . . . Used . | . . . . . . . . . . . . . . . . . . . . Hacking Detections 33 | . 5 . . . 8 . 4 . 3 . . . 7 . 5 . 1 . . Full Trace Events 6 | . 2 . . . 1 . . . . . . . 2 . 1 . . . . Feedback Events . | . . . . . . . . . . . . . . . . . . . . Feedback Blocked . | . . . . . . . . . . . . . . . . . . . . Robot Schematics Acquired . | . . . . . . . . . . . . . . . . . . . . Robots Built . | . . . . . . . . . . . . . . . . . . . . Authchips . | . . . . . . . . . . . . . . . . . . . . Time . | . . . . . . . . . . . . . . . . . . . . Total Robot Build Rating . | . . . . . . . . . . . . . . . . . . . . Part Schematics Acquired 2 | . . . . . 2 . . . . . . . . . . . . . . Parts Built . | . . . . . . . . . . . . . . . . . . . . Authchips . | . . . . . . . . . . . . . . . . . . . . Time . | . . . . . . . . . . . . . . . . . . . . Total Part Build Rating . | . . . . . . . . . . . . . . . . . . . . Parts Repaired 2 | . . . . . . . . . 2 . . . . . . . . . . Time 82 | . . . . . . . . . 82 . . . . . . . . . . Parts Recycled . | . . . . . . . . . . . . . . . . . . . . Recycled Matter . | . . . . . . . . . . . . . . . . . . . . Retrieved Matter . | . . . . . . . . . . . . . . . . . . . . Retrieved Components 4 | . 1 . . . . . . . . . . . . . 3 . . . . Parts Scanalyzed 2 | . . . . . 2 . . . . . . . . . . . . . . Part Schematics Acquired 2 | . . . . . 2 . . . . . . . . . . . . . . Parts Damaged . | . . . . . . . . . . . . . . . . . . . . Bothacking | -11 -10 -10 -10 -9 -8 -8 -8 -8 -7 -7 -6 -6 -6 -6 -5 -5 -5 -5 -4 ------------ Run | Scr Mat Min Exi Min Mat Gar Mat Gar Fac Gar Fac Was Fac Gar Fac Was Fac Gar Fac Used RIF Installer 5 | . . . . . . 1 . 1 . 1 . . . 1 . . . 1 . Command Fork 1 | . . . . . . . . . . . . . . . . . . 1 . Robot Detection 1 | . . . . . . . . 1 . . . . . . . . . . . Watcher Feeds 1 | . . . . . . . . . . . . . . 1 . . . . . Patrol Navigation 1 | . . . . . . . . . . 1 . . . . . . . . . Robots Hacked 37 | . . . . . . . . . 5 4 . 6 4 2 8 . . 8 . Non-combat 7 | . . . . . . . . . 3 . . . 2 . 2 . . . . Combat 30 | . . . . . . . . . 2 4 . 6 2 2 6 . . 8 . Robot Hacks Applied 41 | . . . . . . . . . 7 4 . 7 4 2 8 . . 9 . parse_system 4 | . . . . . . . . . . . . 1 . . . . . 3 . no_distress 2 | . . . . . . . . . 1 . . . . . 1 . . . . find_fabricator 1 | . . . . . . . . . 1 . . . . . . . . . . drop_inventory 2 | . . . . . . . . . 1 . . . 1 . . . . . . locate_stockpiles 1 | . . . . . . . . . 1 . . . . . . . . . . map_route 1 | . . . . . . . . . 1 . . . . . . . . . . mark_security 1 | . . . . . . . . . . . . . 1 . . . . . . ignore_targets 6 | . . . . . . . . . . . . 6 . . . . . . . disrupt_area 1 | . . . . . . . . . . . . . 1 . . . . . . reboot_system 1 | . . . . . . . . . . . . . 1 . . . . . . go_dormant 1 | . . . . . . . . . . 1 . . . . . . . . . streamctrl_high 4 | . . . . . . . . . 1 . . . . 1 . . . 2 . formatsys_low 1 | . . . . . . . . . . . . . . . 1 . . . . formatsys_high 15 | . . . . . . . . . 1 3 . . . 1 6 . . 4 . Relay Couplers Released 39 | . . . . . . 5 . 5 . 9 . . . 7 2 . . 11 . Machine Destruction 39 | . . . . . . 5 . 5 . 9 . . . 7 2 . . 11 . Attached 19 | . . . . . . . . . 2 3 . 1 2 1 4 . . 4 2 Fabnet Peak Effective % . | . . . . . . . . . . . . . . . . . . . . Robots Rewired 12 | . . . . . . . . . . 6 . . . . . . . 6 . Allies Hacked . | . . . . . . . . . . . . . . . . . . . . Hacks Repelled . | . . . . . . . . . . . . . . . . . . . . Allies | -11 -10 -10 -10 -9 -8 -8 -8 -8 -7 -7 -6 -6 -6 -6 -5 -5 -5 -5 -4 -------- Run | Scr Mat Min Exi Min Mat Gar Mat Gar Fac Gar Fac Was Fac Gar Fac Was Fac Gar Fac Total Allies 57 | . . . . 2 . . . . 2 9 . . . 3 7 20 . 12 2 Largest Group 21 | . . . . 2 2 . . . 1 7 2 2 . 2 1 21 20 11 2 Highest-Rated Group 746 | . . . . 44 44 . . . 32 211 86 86 . 85 41 746 700 466 108 Highest-Rated Ally 85 | . . . . 31 31 . . . 32 43 43 43 . 85 41 50 50 85 54 Total Orders 10 | . . . . . . . . . . 3 . . . . 4 . . . 3 STAY 2 | . . . . . . . . . . 2 . . . . . . . . . ROAM 2 | . . . . . . . . . . . . . . . . . . . 2 FOLLOW 1 | . . . . . . . . . . 1 . . . . . . . . . AID 1 | . . . . . . . . . . . . . . . 1 . . . . EXPLORE 4 | . . . . . . . . . . . . . . . 3 . . . 1 Ally Attacks 324 | . . . . . 20 . . . 1 41 . 47 . 17 11 . 69 111 7 Total Damage 10641 | . . . . . 281 . . . 168 1002 . 1598 . 574 250 . 2085 4563 120 Kills 59 | . . . . . 7 . . . 2 9 . 1 . 3 2 . 12 22 1 Allies Corrupted 4 | . . . . . . . . . 1 . . . . . . . . 3 . Allies Melted 2 | . . . . . . . . . . . . . . . . . . 2 . Field Lobotomies 4 | . . . . . . . . . . . . . . 1 . . . 1 2 Intel | -11 -10 -10 -10 -9 -8 -8 -8 -8 -7 -7 -6 -6 -6 -6 -5 -5 -5 -5 -4 ------- Run | Scr Mat Min Exi Min Mat Gar Mat Gar Fac Gar Fac Was Fac Gar Fac Was Fac Gar Fac Robot Analysis Total 3 | . 2 . . . 1 . . . . . . . . . . . . . . Derelict Logs Recovered 2 | . . . . 2 . . . . . . . . . . . . . . . Drone Launches 6 | . . . . . . . . . . . . . . . 3 . . . 3 Drone Recoveries 4 | . . . . . . . . . . . . . . . 2 . . . 2 Exploration | -11 -10 -10 -10 -9 -8 -8 -8 -8 -7 -7 -6 -6 -6 -6 -5 -5 -5 -5 -4 ------------- Run | Scr Mat Min Exi Min Mat Gar Mat Gar Fac Gar Fac Was Fac Gar Fac Was Fac Gar Fac Turns Passed 21368 | 89 1123 175 652 715 1052 730 989 458 1626 1332 180 1631 2247 1924 2290 276 412 2261 1206 Spaces Moved 10455 | 64 710 108 468 441 572 374 413 215 798 709 107 768 1011 705 1025 168 247 1064 488 Core 107 | 3 . . . . . . . . . . . . . . . . . . 104 Treads 8182 | . 31 . . . 238 374 413 215 798 709 107 768 1011 705 1025 168 247 1064 309 Legs . | . . . . . . . . . . . . . . . . . . . . Wheels 2091 | 61 679 108 468 441 334 . . . . . . . . . . . . . . Hover 75 | . . . . . . . . . . . . . . . . . . . 75 Flight . | . . . . . . . . . . . . . . . . . . . . Fastest Speed 50 | 50 100 115 115 145 115 156 160 162 158 158 158 158 160 160 160 162 162 159 50 Average Speed 155 | 97 114 121 138 145 133 158 160 162 161 158 158 169 160 177 160 162 162 168 143 Slowest Speed 350 | 100 160 130 145 145 160 160 162 162 243 238 158 245 160 240 162 162 162 243 350 Overloaded Moves . | . . . . . . . . . . . . . . . . . . . . Propulsion Burnouts . | . . . . . . . . . . . . . . . . . . . . Robots Hopped . | . . . . . . . . . . . . . . . . . . . . Cave-ins Triggered . | . . . . . . . . . . . . . . . . . . . . Exploration Rate (%) 48 | 4 97 20 90 87 63 45 28 38 25 71 2 100 25 72 28 71 10 84 16 Regions Visited 19 Branch Regions 3 Pre-discovered Areas . | . . . . . . . . . . . . . . . . . . . . Known Exits Taken 8 | . . 1 1 1 1 . 1 . 1 . . . 1 . . . 1 . . Unknown Exits Taken 2 | 1 1 . . . . . . . . . . . . . . . . . . Scrap Searched 2 | . . . . 2 . . . . . . . . . . . . . . . Spaces Dug 108 | . 21 . . 1 14 12 1 . 12 1 1 . 6 2 7 . 3 6 21 Terrain Destroyed 391 | . 21 . . 1 14 48 59 . 13 19 1 . 44 56 39 . 3 17 56 Melee 23 | . . . . . . . 1 . 7 1 1 . 6 . 6 . 1 . . Projectile 156 | . 21 . . 1 3 2 2 . 1 . . . 38 4 33 . 2 6 43 AOE 212 | . . . . . 11 46 56 . 5 18 . . . 52 . . . 11 13 Terrain Rammed . | . . . . . . . . . . . . . . . . . . . . Walls Destroyed . | . . . . . . . . . . . . . . . . . . . . Machines Disabled . | . . . . . . . . . . . . . . . . . . . . Actions | -11 -10 -10 -10 -9 -8 -8 -8 -8 -7 -7 -6 -6 -6 -6 -5 -5 -5 -5 -4 --------- Run | Scr Mat Min Exi Min Mat Gar Mat Gar Fac Gar Fac Was Fac Gar Fac Was Fac Gar Fac Total 14120 | 79 877 124 470 513 750 456 615 278 1056 880 118 991 1392 1283 1532 173 253 1423 857 Wait 2109 | . 61 . . 70 57 28 87 24 137 92 8 132 177 486 341 . . 205 204 Move 10440 | 63 709 107 467 440 572 373 413 214 798 708 107 767 1010 704 1025 167 246 1062 488 Hop . | . . . . . . . . . . . . . . . . . . . . Pick Up 155 | 5 16 . 2 1 18 5 11 2 12 9 . 4 19 9 19 2 . 16 5 Fast Attach 65 | 7 2 . . . 4 . 1 . 5 1 . 5 4 2 10 1 1 5 17 Attach 94 | . . 1 . . 5 4 6 . 3 3 2 5 12 13 7 . . 16 17 Detach 19 | . . . . . . . . . . . . 6 1 4 1 . . 2 5 Swap 208 | . 11 3 1 1 18 12 13 3 25 24 . 5 16 11 29 . . 21 15 Drop 165 | . 12 . . . 18 4 10 4 15 8 . 8 11 5 22 3 2 19 24 Fire 792 | 4 66 13 . 1 57 30 72 31 52 33 . 59 109 49 72 . 3 67 74 Melee 33 | . . . . . . . 1 . 9 2 1 . 6 . 6 . 1 7 . Ram 8 | . . . . . . . . . . . . . . . . . . . 8 Kick . | . . . . . . . . . . . . . . . . . . . . Crush 29 | . . . . . 1 . 1 . . . . . 27 . . . . . . Escape Stasis 2 | . . . . . . . . . . . . . . . . . . 2 . Rewire 1 | . . . . . . . . . . . . . . . . . . 1 . Trap . | . . . . . . . . . . . . . . . . . . . . Miscellaneous . | . . . . . . . . . . . . . . . . . . . . Route ------- -11/Scrapyard -10/Materials (discovered 4 exits: [*Mat x3] / [*Min]) -10/Mines (discovered 2 exits: [*Mat] / *Exi) -10/Exiles (discovered 2 exits: *Min x2) -9/Mines -8/Materials (discovered 4 exits: *Fac x3 / Gar) -8/Garrison -8/Materials (discovered 2 exits: *Fac / Gar) -8/Garrison -7/Factory (discovered 4 exits: *Fac / [*Sto] / *Low / Gar) -7/Garrison (discovered 3 exits: *Fac x3) -6/Factory -6/Waste -6/Factory (discovered 2 exits: *Fac / Gar) -6/Garrison (discovered 3 exits: *Fac x3) -5/Factory (discovered 3 exits: *Fac x3) -5/Waste -5/Factory (discovered 2 exits: *Fac / Gar) -5/Garrison (discovered 3 exits: *Fac x3) -4/Factory History --------- Turn | Location | Event 24 | -11/Scrapyard | Discovered new exit (range 16) 90 | -11/Scrapyard | Entered Materials 338 | -10/Materials | Build established: Mutant 397 | -10/Materials | Discovered new exit (range 3) 570 | -10/Materials | Discovered new exit (range 8) 651 | -10/Materials | Discovered new exit (range 8) 720 | -10/Materials | Discovered new exit (range 6) 1213 | -10/Materials | Entered Mines 1244 | -10/Mines | Discovered new exit (range 8) 1310 | -10/Mines | Deemed a non-threat by the Exiles lab entrance 1310 | -10/Mines | Discovered new exit (range 5) 1315 | -10/Mines | Identified exit to Exiles 1388 | -10/Mines | Entered Exiles 1405 | -10/Exiles | Discovered new exit (range 15) 1426 | -10/Exiles | Met 8R-AWN 1443 | -10/Exiles | Met EX-HEX 1527 | -10/Exiles | Met EX-DEC 1590 | -10/Exiles | Met EX-BIN 1620 | -10/Exiles | Aligned with FarCom system 1622 | -10/Exiles | Given EX-Vault access code 1658 | -10/Exiles | Opened EX-Vault 1670 | -10/Exiles | Found Field Lobotomy Kit 1702 | -10/Exiles | Warned to stay clear of 0b10 Research branches 1798 | -10/Exiles | Visited The Gauntlet 2026 | -10/Exiles | Discovered new exit (range 10) 2039 | -10/Exiles | Identified exit to Mines 2040 | -10/Exiles | Left Exiles lab with Field Lobotomy Kit 2040 | -10/Exiles | Entered Mines 2515 | -9/Mines | Learned Materials interactive machine intel 2534 | -9/Mines | Learned 2 Materials zone layouts 2743 | -9/Mines | Discovered new exit (range 8) 2754 | -9/Mines | Identified exit to Materials 2755 | -9/Mines | Entered Materials 2755 | -8/Materials | Accompanied by 2 allies 2755 | -8/Materials | Evolved 4 slots: Propulsion x2, Utility x2 2757 | -8/Materials | Loaded intel: 19 interactive machine locations 2760 | -8/Materials | Led the pair of lost Derelicts to an unsafe place 2951 | -8/Materials | Discovered new exit (range 11) 3181 | -8/Materials | Discovered new exit (range 12) 3213 | -8/Materials | Identified exit to Factory 3250 | -8/Materials | Lost 3 parts (2p1n) 3548 | -8/Materials | Build established: Scavenger-Mutant 3652 | -8/Materials | Discovered exit to Factory (range 10) 3786 | -8/Materials | Garrison activated, responded to threat 3807 | -8/Materials | Identified exit to Garrison 3807 | -8/Materials | Entered Garrison 3815 | -8/Garrison | Installed Relay Interface Framework 3882 | -8/Garrison | Triggered checkpoint 3915 | -8/Garrison | Garrison Relay disabled 4002 | -8/Garrison | Triggered checkpoint 4032 | -8/Garrison | Triggered checkpoint 4088 | -8/Garrison | Triggered checkpoint 4184 | -8/Garrison | Lost 4 parts (3n1u) 4275 | -8/Garrison | Discovered new exit (range 12) 4535 | -8/Garrison | Identified exit to Materials 4537 | -8/Garrison | Entered Materials 4761 | -8/Materials | Discovered exit to Factory (range 9) 4844 | -8/Materials | Core integrity fell below 50% 4965 | -8/Materials | Garrison activated, responded to threat 5033 | -8/Materials | Destroyed 7 combat bots 5314 | -8/Materials | Core integrity fell below 20% 5526 | -8/Materials | Identified exit to Garrison 5526 | -8/Materials | Entered Garrison 5535 | -8/Garrison | Expanded RIF knowledge: Robot Detection 5744 | -8/Garrison | Triggered checkpoint 5751 | -8/Garrison | Build established: Mutant 5775 | -8/Garrison | Garrison Relay disabled 5850 | -8/Garrison | Triggered checkpoint 5859 | -8/Garrison | Triggered checkpoint 5904 | -8/Garrison | Triggered checkpoint 5971 | -8/Garrison | Discovered exit to Factory (range 8) 5984 | -8/Garrison | Entered Factory 5984 | -7/Factory | Evolved 2 slots: Utility x2 6171 | -7/Factory | Repaired Arm. Treads 6199 | -7/Factory | Discovered new exit (range 15) 6250 | -7/Factory | Identified exit to Factory 6305 | -7/Factory | Discovered new exit (range 8) 6313 | -7/Factory | Identified exit to Lower Caves 6355 | -7/Factory | Build established: Assassin 6712 | -7/Factory | Discovered new exit (range 60) 7140 | -7/Factory | Repaired Med. Treads 7230 | -7/Factory | Build established: Mutant 7610 | -7/Factory | Identified exit to Garrison 7610 | -7/Factory | Entered Garrison 7618 | -7/Garrison | Expanded RIF knowledge: Patrol Navigation 7678 | -7/Garrison | Triggered checkpoint 7696 | -7/Garrison | Garrison Relay disabled 7782 | -7/Garrison | Triggered checkpoint 7796 | -7/Garrison | Triggered checkpoint 8116 | -7/Garrison | Discovered exit to Factory (range 10) 8205 | -7/Garrison | Build established: Commander-Mutant 8310 | -7/Garrison | Triggered checkpoint 8432 | -7/Garrison | Discovered exit to Factory (range 9) 8463 | -7/Garrison | Triggered checkpoint 8518 | -7/Garrison | Garrison Relay disabled 8608 | -7/Garrison | Triggered checkpoint 8750 | -7/Garrison | Build established: Scavenger-Mutant 8880 | -7/Garrison | Triggered checkpoint 8882 | -7/Garrison | Discovered exit to Factory (range 15) 8942 | -7/Garrison | Entered Factory 8942 | -6/Factory | Accompanied by 2 allies 8942 | -6/Factory | Evolved 2 slots: Utility x1, Weapon x1 9122 | -6/Factory | Sucked down chute 9122 | -6/Factory | Entered Waste 9136 | -6/Waste | Spotted C-40 Crusher 9165 | -6/Waste | 2 allies followed down the chute 9190 | -6/Waste | Spotted C-40 Crusher 9195 | -6/Waste | Spotted C-40 Crusher 9210 | -6/Waste | Spotted C-40 Crusher 9213 | -6/Waste | Spotted C-40 Crusher 9232 | -6/Waste | Allies destroyed C-40 Crusher 9265 | -6/Waste | Crushed by Compactor (1 part destroyed, 1 dropped) 9276 | -6/Waste | Crushed by Compactor (1 part destroyed, 1 dropped) 9323 | -6/Waste | Spotted C-40 Crusher 9337 | -6/Waste | Build established: Bothacker-Assassin 9439 | -6/Waste | Discovered new exit (range 12) 10015 | -6/Waste | Destroyed C-40 Crusher 10106 | -6/Waste | Build established: Bothacker-Skirmisher 10108 | -6/Waste | Destroyed C-40 Crusher 10159 | -6/Waste | Destroyed C-40 Crusher 10273 | -6/Waste | Destroyed C-40 Crusher 10366 | -6/Waste | Destroyed C-40 Crusher 10751 | -6/Waste | Identified exit to Factory 10753 | -6/Waste | Entered Factory 11551 | -6/Factory | Build established: Scavenger-Skirmisher 11623 | -6/Factory | System corruption reached 10% 11928 | -6/Factory | Discovered new exit (range 15) 12600 | -6/Factory | Lost 5 parts (3u2w) 12920 | -6/Factory | Build established: Tank 12998 | -6/Factory | Identified exit to Garrison 13000 | -6/Factory | Entered Garrison 13048 | -6/Garrison | Triggered checkpoint 13119 | -6/Garrison | Garrison Relay disabled 13460 | -6/Garrison | Spotted B-75 Beast 13462 | -6/Garrison | Triggered checkpoint 13513 | -6/Garrison | Core integrity fell below 50% 13543 | -6/Garrison | Assimilated B-75 Beast with FLK Orb 13826 | -6/Garrison | Build established: Mutant 14224 | -6/Garrison | Discovered new exit (range 13) 14314 | -6/Garrison | Triggered checkpoint 14370 | -6/Garrison | Triggered checkpoint 14373 | -6/Garrison | Triggered checkpoint 14523 | -6/Garrison | Found Hvy. Reflective Plating 14575 | -6/Garrison | Spotted B-75 Beast 14577 | -6/Garrison | Spotted B-75 Beast 14698 | -6/Garrison | Discovered new exit (range 15) 14824 | -6/Garrison | Triggered checkpoint 14848 | -6/Garrison | Garrison Relay disabled 14888 | -6/Garrison | Discovered new exit (range 14) 14918 | -6/Garrison | Expanded RIF knowledge: Watcher Feeds 14924 | -6/Garrison | Entered Factory 14924 | -5/Factory | Evolved 2 slots: Power x1, Propulsion x1 15159 | -5/Factory | Build established: Scavenger-Mutant 16296 | -5/Factory | Garrison activated, responded to threat 16429 | -5/Factory | Discovered new exit (range 11) 16707 | -5/Factory | Garrison activated, responded to threat 16866 | -5/Factory | Garrison activated, responded to threat 16962 | -5/Factory | Discovered new exit (range 6) 17194 | -5/Factory | Discovered new exit (range 21) 17214 | -5/Factory | Sucked down chute 17214 | -5/Factory | Entered Waste 17215 | -5/Waste | Joined by Warlord forces that had cleared the area 17220 | -5/Waste | 3 allies followed down the chute 17472 | -5/Waste | Discovered new exit (range 11) 17490 | -5/Waste | Entered Factory 17490 | -5/Factory | Accompanied by 20 allies 17891 | -5/Factory | Discovered new exit (range 13) 17894 | -5/Factory | Identified exit to Garrison 17902 | -5/Factory | Entered Garrison 17902 | -5/Garrison | Accompanied by 11 allies 17942 | -5/Garrison | Triggered checkpoint 17962 | -5/Garrison | Garrison Relay disabled 18058 | -5/Garrison | Triggered checkpoint 18096 | -5/Garrison | Triggered checkpoint 18138 | -5/Garrison | Triggered checkpoint 18212 | -5/Garrison | Triggered checkpoint 18272 | -5/Garrison | Triggered checkpoint 18329 | -5/Garrison | Discovered new exit (range 5) 18707 | -5/Garrison | Spotted B-75 Beast 18710 | -5/Garrison | Hijacked Beast 6a control node with streamctrl_high 18807 | -5/Garrison | Assimilated Beast 6a with FLK Orb 18928 | -5/Garrison | Garrison Relay disabled 18947 | -5/Garrison | Core integrity fell below 50% 19002 | -5/Garrison | Triggered checkpoint 19130 | -5/Garrison | Triggered checkpoint 19232 | -5/Garrison | Triggered checkpoint 19365 | -5/Garrison | Discovered new exit (range 14) 19680 | -5/Garrison | Build established: Scavenger-Tank 19974 | -5/Garrison | Core integrity fell below 20% 20031 | -5/Garrison | Triggered checkpoint 20118 | -5/Garrison | Discovered new exit (range 15) 20155 | -5/Garrison | Expanded RIF knowledge: Command Fork 20163 | -5/Garrison | Entered Factory 20163 | -4/Factory | Evolved 2 slots: Propulsion x1, Utility x1 20609 | -4/Factory | Found Prototype Launcher 20609 | -4/Factory | Identified Tesla Bomb Launcher 20663 | -4/Factory | First assault squad dispatched 20905 | -4/Factory | Lost 3 parts (1u2w) 20989 | -4/Factory | Lost 4 parts (3n1w) 21142 | -4/Factory | Build established: Bothacker-Skirmisher 21189 | -4/Factory | Lost 11 parts (1p5n4u1w) 21191 | -4/Factory | Assimilated P-70 Sage with FLK Orb 21201 | -4/Factory | Assimilated P-70 Sage with FLK Orb 21323 | -4/Factory | Core integrity fell below 50% 21340 | -4/Factory | Lost 5 parts (2u3w) 21348 | -4/Factory | Core integrity fell below 20% 21369 | -4/Factory | Destroyed by S-27 Virus with Autogun Last Messages --------------- 21345_ Slammed into G-67 Veteran. 21346_ Slammed into B-60 Warrior. 21346_ Broken Adv. Terrain Scan Processor destroyed. 21346_ System corrupted by crushing effect (+3). 21346_ Relay Coupler [NC] destroyed. 21346_ System corrupted by crushing effect (+1). 21347_ Slammed into G-67 Veteran. 21347_ G-73 Enforcer IFF system glitched. 21350_ P-70 Sage resets G-73 Enforcer, system corruption cleaned. 21350_ P-70 Sage resets G-67 Veteran, system corruption cleaned. 21352_ P-70 Sage resets M-36 Artificer, system corruption cleaned. 21356_ ALERT: Hostiles spotted, dispatching reinforcements to Terminal F002. 21357_ Slug penetrates Door. 21359_ Slammed into U-05 Engineer. 21360_ ALERT: Construction progress impeded, dispatching reinforcements to local area. 21360_ Penetrated by Slug. 21362_ Slammed into U-05 Engineer. 21365_ K-01 Serf cleans the Terminal. Map ----- +----------------------------------------------------+ | ?????????????????????????????????????????????????? | | ?????????????????????????????????????????????????? | | ?????????????????????????????????????????????????? | | ?????????????????????????????????????????????????? | | ?????????????????????????????????????????????????? | | ?????????????????????????????????????????????????? | | ?????????????????????????????????????????????????? | | ?????????????????????????????????????????????????? | | ?????????????????????????????????????????????????? | | ?????????????????????????????????????????????????? | | ?????????????????????????Y??????????H????????????? | | ????????????????????????? ???????????????????????? | | ????????????????????????? ???????????????????????? | | ????????????????????????? ???????????????????????? | | ????????????????????????? ???????????????????????? | | ????????????????????????? ???????????????????????? | | ????????????????????????? ??????????????????###### | | ????????????????????????# #?????????????????# | | ????????????????????????# #?????????????????# | | ????????????????????????# #?????????????????# | | ????????????????????????# #?????????????????# """" | | ????????????????????????# #?????????????????# """" | | ?????????? ######?????#R#?????????????????# """" | | ?????????? ????# #?????????????????# """" | | ????????? ##### #?????????????????#%% | | ????????? w@#????????###########/### | | ????????? #????????# %% | | ????????????""" """ """ #?######## | | ????????????????""" """ #?# # | | ??????????????? """u""" o"#?# # ##/####### | | ?????????????"" """ """ "#?# # #?? ????## | | ????????? "#?# # b#??? ???? | | ?????????????"" """ """k T#?# # #????? #??? | | ????????????????""" """ "#?# ]# #??????#??? | | ????????????????""" """ps"#?###"#### #?????????? | | ????????????""" """ """ "#?# ##g #?????????? | | ????????? ###% gg #?????????? | | ????????? ! ku %sspY #?????????? | | ????????? #####+### #?????????? | | ?????????? ??? ?# ######?????????? | | ?????????? w?? """ ### ###??????????????? | | ??????????? ???# """ ??# #????????????????? | | ?????????? ????# """ #?# #????????????????? | | ??????????? ?????# #? ????????????????? | | ??????????? ????????#! #? ????????????????? | | ??????????????????????#######? ???????????????? | | ????????????????????????????? ???????????????? | | ????????????????????????????? ???????????????? | | ?????????????????????????????######??????????????? | | ?????????????????????????????????????????????????? | +----------------------------------------------------+ Best States ------------- Heat Dissipation 112 Coolant Potential 80 Energy Generation 35 Energy Capacity 1100 Matter Stores 462 Matter Capacity 500 Sight Range 18 Terrain Scan Range 16 Terrain Scan Density 210 EM Shielding 3 Armor Coverage 825 Resistance: KI 25 Resistance: TH 25 Resistance: EM 15 Evasion (%) 53 Recoil Reduction 6 Kinecelleration 30 Relay Coupler Types 3 Relay Coupler Value 75 Item Schematics ----------------- Plasma Cutter | -8/Materials | Scanalyzed Hacking Suite | -8/Materials | Scanalyzed Robot Schematics ------------------ None Fabricated ------------ Nothing Alien Tech Used ----------------- None Achievements -------------- Below Factory Defaults Omniscient Cartographer Use The Force We Are Legion Challenges ------------ None Game ------ Seed NuclearRecoilFrame Manual? 0 Play Time 05:20:47 Cumulative 72.3 hours Start 2022.09.14 @ 19:00:14 End 2022.09.16 @ 18:38:23 Sessions 10 Manual Loads 0 Difficulty Rogue Special Mode None Game No. 16 Rogue 16 Adventurer 0 Explorer 0 Win Type - Total 0 Types 0/0/0/0/0/0/0/0/0 Lore% 34 Gallery% 39 Achievement% 35 Wizard Run 0 Options --------- ASCII 0 Keyboard 0 Movement Mouse Keybinds 0 Fullscreen 1 Font 24/Smallcaps Map View 76x50 Tactical HUD 1 Map Filters NONE Filters NONE Steam 1 RUN: 85fd7843-4fdf-41e8-9e5d-a0aaefe82073